fUST/lending_fUST_20240511
["ID","MTS","AMOUNT","RATE_DAILY","PERIOD"]
[326778104,1715356850305,834.20724205,9.999e-05,2]
[326778105,1715356927189,154.9063322,9.999e-05,2]
[326778106,1715356931714,19221.69193316,9.999e-05,2]
[326778107,1715356959047,1579.16991007,9.999e-05,2]
[326778108,1715356987175,1348.61247082,9.999e-05,2]
[326778109,1715356990973,154.73694719,9.999e-05,2]
[326778110,1715356995297,194.1642929,9.999e-05,2]
[326778111,1715356995617,527.71870107,9.999e-05,2]
[326778112,1715356996910,236.2098159,9.999e-05,2]
[326778113,1715356998598,584.46537033,9.999e-05,2]
[326778114,1715357000280,315.50017561,9.999e-05,2]
[326778115,1715357001313,5056.799679,0.000266,120]
[326778116,1715357003705,154.80839688,9.999e-05,2]
[326778117,1715357008899,154.69061876,9.999e-05,2]
[326778118,1715357009020,1093.32828245,9.999e-05,2]
[326778119,1715357017306,206.84585849,9.999e-05,2]
[326778120,1715357018654,1624.38458646,9.999e-05,2]
[326778121,1715357021455,154.73694719,9.999e-05,2]
[326778122,1715357027628,156.07783812,9.999e-05,2]
[326778123,1715357036792,284.55118921,9.999e-05,2]
[326778124,1715357046578,154.69061876,9.999e-05,2]
[326778125,1715357058793,469.65829869,9.999e-05,2]
[326778126,1715357070960,222.38123937,9.999e-05,2]
[326778127,1715357074475,904.53581118,9.999e-05,2]
[326778128,1715357089444,292.24630135,9.999e-05,2]
[326778129,1715357105628,1336.81700769,9.999e-05,2]
[326778130,1715357136136,-154.69061876,0.00015872,2]
[326778131,1715357136155,-154.69061876,0.00015873,2]
[326778132,1715357136175,-159.863038,0.0001589,2]
[326778133,1715357136195,-834.20724205,0.00016499,2]
[326778134,1715357136215,-273.52788847,0.00018023,2]
[326778135,1715357136234,-250.0,0.00018024,2]
[326778136,1715357136254,-604.78532662,0.000185,2]
[326778137,1715357136273,-215.8001,0.00019178,2]
[326778138,1715357136292,-3000.0,0.00019782,2]
[326778139,1715357136313,-256.06910556,0.000199,2]
[326778140,1715357136332,-442.63686154,0.000199,2]
[326778141,1715357136352,-276.58127795,0.000199,2]
[326778142,1715357136372,-154.73694719,0.00019998,2]
[326778143,1715357136392,-186.57507441,0.00019998,2]
[326778144,1715357136548,-718.7949124,0.00019998,2]
[326778145,1715357136567,-1894.38518573,0.00019998,2]
[326778146,1715357136585,-409.78145446,0.00019998,2]
[326778147,1715357136604,-238.14316448,0.00019998,2]
[326778148,1715357136623,-154.73694719,0.00019998,2]
[326778149,1715357136642,-3456.78149574,0.00019998,2]
[326778150,1715357136660,-475.84079107,0.00019998,2]
[326778151,1715357136679,-154.73694719,0.00019998,2]
[326778152,1715357136700,-547.66740892,0.00019998,2]
[326778153,1715357136721,-154.73694719,0.00019998,2]
[326778154,1715357136741,-412.72806023,0.00019998,2]
[326778155,1715357136761,-154.73694719,0.00019998,2]
[326778156,1715357136779,-154.73694719,0.00019998,2]
[326778157,1715357136799,-1201.34378982,0.00019998,2]
[326778158,1715357136818,-192.84485712,0.00019998,2]
[326778159,1715357136838,-816.74367356,0.00019998,2]
[326778160,1715357136856,-526.90400337,0.00019998,2]
[326778161,1715357136875,-236.55137057,0.00019998,2]
[326778162,1715357136894,-513.44882322,0.00019998,2]
[326778163,1715357136912,-346.97520054,0.00019998,2]
[326778164,1715357136931,-582.88030968,0.00019998,2]
[326778165,1715357136953,-483.96104109,0.00019998,2]
[326778166,1715357136971,-154.78327562,0.00019998,2]
[326778167,1715357136991,-206.44305292,0.00019998,2]
[326778168,1715357137012,-1089.06089726,0.00019998,2]
[326778169,1715357137032,-286.24167411,0.00019998,2]
[326778170,1715357137050,-155.13313692,0.00019998,2]
[326778171,1715357137069,-470.50025536,0.00019998,2]
[326778172,1715357137089,-890.86399533,0.00019998,2]
[326778173,1715357137108,-292.24630135,0.00019998,2]
[326778174,1715357137127,-1334.9705533,0.00019998,2]
[326778175,1715357137146,-1491.52438261,0.00019999,2]
[326778176,1715357137165,-222.84206869,0.0002,2]
[326778177,1715357137184,-380.05955451,0.0002,2]
[326778178,1715357137206,-28352.18885133,0.0002,2]
[326778179,1715357137225,-67521.8836984,0.0002,2]
[326778180,1715357137243,-442.63686151,0.00020001,2]
[326778181,1715357137264,-442.63686151,0.00020102,2]
[326778182,1715357137283,-442.63686151,0.00020203,2]
[326778183,1715357137303,-442.63686151,0.00020304,2]
[326778184,1715357137322,-442.63686151,0.00020406,2]
[326778185,1715357137341,-442.63686151,0.00020507,2]
[326778186,1715357137362,-154.76782973,0.0002091,2]
[326778187,1715357137382,-154.80561462,0.00020911,2]
[326778188,1715357137403,-500.0,0.00020911,2]
[326778189,1715357137428,-362.67265862,0.00020911,2]
[326778190,1715357145811,522.19690124,9.999e-05,2]
[326778191,1715357148032,281.09538641,9.999e-05,2]
[326778192,1715357154812,364.39759139,9.999e-05,2]
[326778193,1715357159906,2086.67556332,9.999e-05,2]
[326778194,1715357171738,19226.42215119,9.999e-05,2]
[326778195,1715357172752,363.54386345,9.999e-05,2]
[326778197,1715357175912,2090.39705573,9.999e-05,2]
[326778199,1715357187734,19226.42215119,9.999e-05,2]
[326778200,1715357205737,5621.42634553,9.999e-05,2]
[326778201,1715357227122,-154.70605849,0.00020607,2]
[326778202,1715357227155,-442.63686151,0.00020608,2]
[326778203,1715357227187,-442.63686151,0.00020709,2]
[326778204,1715357227218,-154.69061876,0.00020909,2]
[326778205,1715357227248,-604.46437582,0.00020909,2]
[326778206,1715357227280,-154.82946811,0.0002091,2]
[326778207,1715357227320,-816.36645529,0.0002091,2]
[326778208,1715357227350,-522.19690124,0.00020911,2]
[326778209,1715357227380,-25885.109289,0.00020912,2]
[326778210,1715357227415,-166.666666,0.00021918,2]
[326778211,1715357227450,-5229.71545665,0.00022,2]
[326778212,1715357227482,-166.666666,0.00022431,2]
[326778213,1715357227512,-166.666666,0.00022944,2]
[326778214,1715357227543,-166.666666,0.00023456,2]
[326778215,1715357227580,-166.666666,0.00023969,2]
[326778216,1715357227612,-256.06910556,0.00024434,2]
[326778217,1715357227642,-166.666666,0.00024482,2]
[326778218,1715357227673,-426.88516328,0.00027397,2]
[326778219,1715357227704,-256.06910556,0.00028969,2]
[326778220,1715357227734,-256.06910556,0.00033503,2]
[326778221,1715357227764,-168.766912,0.00035616,120]
[326778222,1715357227789,-392.65337994,0.00036499,4]
[326778223,1715357227817,-367.50388086,0.00036499,4]
[326778224,1715357228011,-1120.81587223,0.00036499,4]
[326778225,1715357228036,-10000.0,0.000365,20]
[326778226,1715357228064,-999.26943376,0.00036817,2]
[326778227,1715357228086,-4732.07946288,0.00037,5]
[326778228,1715357228108,-2342.63,0.00037689,3]
[326778229,1715357228129,-13526.27975228,0.00037698,10]
[326778230,1715357228150,-4835.10986371,0.00037699,4]
[326778231,1715357230354,-713.0309286,0.00017,2]
[326778232,1715357230375,-222.84206869,0.00028968,2]
[326778233,1715357230395,-85885.27130497,0.00037699,4]
[326778234,1715357230419,-4462.15563876,0.000377,90]
[326778235,1715357230440,-5867.6208211,0.00037897,4]
[326778236,1715357230465,-154.73694719,0.00037987,4]
[326778237,1715357230487,-3456.78149574,0.00037987,4]
[326778238,1715357230509,-1334.9705533,0.00037987,4]
[326778239,1715357230532,-154.73694719,0.00037987,4]
[326778240,1715357230560,-192.84485712,0.00037987,4]
[326778241,1715357230581,-890.86399533,0.00037987,4]
[326778242,1715357230603,-288.53731085,0.00037987,4]
[326778243,1715357230625,-714.97924015,0.00037987,2]
[326778244,1715357230646,-547.66740892,0.00037988,4]
[326778245,1715357230667,-649.72939109,0.00037996,15]
[326778246,1715357230688,-500.0,0.00037996,15]
[326778247,1715357230711,-500.0,0.00037996,15]
[326778248,1715357230731,-450.0,0.00037996,15]
[326778249,1715357230752,-423.34952673,0.00037996,15]
[326778250,1715357230774,-500.0,0.00037996,15]
[326778251,1715357230797,-500.0,0.00037996,15]
[326778252,1715357230826,-500.0,0.00037996,15]
[326778253,1715357230847,-500.0,0.00037996,15]
[326778254,1715357230871,-500.0,0.00037996,15]
[326778255,1715357230893,-600.0,0.00037996,15]
[326778256,1715357230914,-500.0,0.00037996,15]
[326778257,1715357230934,-154.73694719,0.00037997,4]
[326778258,1715357230955,-154.73694719,0.00037997,4]
[326778259,1715357230976,-526.90400337,0.00037997,4]
[326778260,1715357230995,-286.24167411,0.00037997,4]
[326778261,1715357231015,-154.73694719,0.00037997,4]
[326778262,1715357231154,-475.84079107,0.00037997,4]
[326778263,1715357231175,-816.74367356,0.00037997,2]
[326778264,1715357231196,-470.50025536,0.00037997,4]
[326778265,1715357231216,-154.73694719,0.00037997,2]
[326778266,1715357231241,-346.97520054,0.00037997,4]
[326778267,1715357231261,-155.13313692,0.00037997,4]
[326778268,1715357231282,-1894.38518573,0.00037997,4]
[326778269,1715357231305,-510.63663753,0.00037997,2]
[326778270,1715357231325,-412.72806023,0.00037997,4]
[326778271,1715357231345,-186.57507441,0.00037997,4]
[326778272,1715357231365,-238.14316448,0.00037997,4]
[326778273,1715357231384,-206.44305292,0.00037997,4]
[326778274,1715357231403,-513.44882322,0.00037998,4]
[326778275,1715357231427,-236.55137057,0.00037998,4]
[326778276,1715357231445,-409.78145446,0.00037998,4]
[326778277,1715357231467,-483.96104109,0.00037998,4]
[326778278,1715357231487,-582.88030968,0.00037998,4]
[326778279,1715357231508,-718.7949124,0.00037998,4]
[326778280,1715357231528,-154.78327562,0.00037998,4]
[326778281,1715357231551,-1491.52438261,0.00037998,4]
[326778282,1715357231571,-1201.34378982,0.00037998,4]
[326778283,1715357231591,-1089.06089726,0.00037998,4]
[326778284,1715357231611,-1000.0,0.00037998,2]
[326778285,1715357231632,-1000.0,0.00037998,2]
[326778286,1715357231652,-154.76782357,0.00037999,4]
[326778287,1715357231672,-28352.18885133,0.00037999,4]
[326778288,1715357231692,-31028.0,0.00038,4]
[326778289,1715357231712,-256.06910556,0.00038037,2]
[326778290,1715357231733,-154.83438006,0.00038137,4]
[326778291,1715357231753,-3038.05048513,0.00038774,5]
[326778292,1715357233405,-3423.27,0.00037977,3]
[326778293,1715357233431,-52516.94951487,0.00038774,5]
[326778294,1715357233454,-154.73694719,0.00038874,4]
[326778295,1715357233479,-303.71533811,0.00038874,4]
[326778296,1715357233500,-5435.6312875,0.000389,10]
[326778297,1715357233520,-2150.09488041,0.00038916,4]
[326778298,1715357233542,-193.88362869,0.00038916,4]
[326778299,1715357233567,-3056.17446337,0.00038916,4]
[326778300,1715357233589,-1399.78353884,0.00038916,4]
[326778301,1715357233609,-184.24792975,0.00038916,5]
[326778302,1715357233628,-157.2222539,0.00038916,4]
[326778303,1715357233651,-154.73694719,0.00038916,4]
[326778304,1715357233672,-3490.21958311,0.00038917,120]
[326778305,1715357233694,-368.3119025,0.00038917,4]
[326778306,1715357233713,-1551.78493084,0.00038917,4]
[326778307,1715357233733,-154.75239308,0.00038919,4]
[326778308,1715357233754,-33268.24022316,0.00038919,4]
[326778309,1715357233774,-2593.72337385,0.00038937,4]
[326778310,1715357233797,-549.64562367,0.000399,2]
[326778311,1715357233820,-4280.05780043,0.0004,4]
[326778312,1715357233840,-190.10084825,0.0004,4]
[326778313,1715357233859,-557.0,0.00040279,5]
[326778314,1715357233879,-460.01234824,0.00041096,31]
[326778315,1715357233900,-390.29769305,0.00041096,31]
[326778316,1715357253142,-465.40109803,0.00016998,2]
[326778317,1715357253163,-3057.36000381,0.00016999,2]
[326778318,1715357253183,-807.46304775,0.00017,2]
[326778319,1715357253202,-4151.25808068,0.00020913,2]
[326778320,1715357253222,-222.84206869,0.00031097,4]
[326778321,1715357253241,-2318.2414697,0.00031571,2]
[326778322,1715357253262,-500.0,0.00037996,15]
[326778323,1715357253282,-7951.92773563,0.00038833,5]
[326778324,1715357253300,-284.55118921,0.00038871,4]
[326778325,1715357253328,-1120.81587223,0.00038871,4]
[326778326,1715357253347,-604.78532662,0.00038871,4]
[326778327,1715357253366,-520.85109562,0.00038871,4]
[326778328,1715357253385,-154.70605849,0.00038871,4]
[326778329,1715357253405,-5264.74482301,0.00038871,4]
[326778330,1715357253428,-249.38523385,0.00038871,2]
[326778331,1715357253447,-816.97434546,0.00038871,2]
[326778332,1715357253467,-1894.91130728,0.00038871,4]
[326778333,1715357253485,-392.65337994,0.00038871,4]
[326778334,1715357253507,-982.63815061,0.00038872,2]
[326778335,1715357253528,-367.50388086,0.00038872,4]
[326778336,1715357253548,-154.96164866,0.00038872,4]
[326778337,1715357253578,-426.08372243,0.00038872,4]
[326778338,1715357253598,-549.90202406,0.00038872,4]
[326778339,1715357253619,-7419.05861629,0.00038872,4]
[326778340,1715357253642,-109.70230695,0.00041096,31]
[326778341,1715357253662,-999.26943376,0.00041817,2]
[326778342,1715357253682,-557.0,0.00042399,30]
[326778343,1715357253701,-1698.25938138,0.000425,30]
[326778344,1715357253721,-590.0,0.000425,30]
[326778345,1715357253740,-557.0,0.0004463,30]
[326778346,1715357253759,-151.0,0.00045,120]
[326778347,1715357253779,-154.75239617,0.000459,4]
[326778348,1715357253799,-153.0,0.0004672,2]
[326778349,1715357253825,-153.0,0.0004672,2]
[326778350,1715357253844,-999.26943376,0.00046817,2]
[326778351,1715357253864,-557.0,0.00046979,30]
[326778352,1715357253884,-170.0,0.00047,90]
[326778353,1715357253904,-151.0,0.00048192,120]
[326778354,1715357253923,-154.75239617,0.0004834,10]
[326778355,1715357253942,-3991.76643978,0.00049,120]
[326778356,1715357254078,-1120.660797,0.00049341,30]
[326778357,1715357254099,-642.27313,0.00049341,30]
[326778358,1715357254119,-542.181972,0.00049341,30]
[326778359,1715357254138,-1155.866332,0.00049341,30]
[326778360,1715357254158,-372.880405,0.00049341,30]
[326778361,1715357254178,-577.933165,0.00049341,30]
[326778362,1715357254197,-666.47544,0.00049341,30]
[326778363,1715357254217,-167.651318,0.00049341,30]
[326778364,1715357254237,-449.500971,0.00049341,30]
[326778365,1715357254257,-642.273131,0.00049341,30]
[326778366,1715357254276,-293.595035,0.00049341,30]
[326778367,1715357254299,-557.0,0.00049452,30]
[326778368,1715357254327,-500.0,0.00049714,17]
[326778369,1715357254347,-1120.660797,0.00049957,30]
[326778370,1715357254367,-642.27313,0.00049957,30]
[326778371,1715357254388,-542.181972,0.00049957,30]
[326778372,1715357254408,-1155.866332,0.00049957,30]
[326778373,1715357254428,-372.880405,0.00049957,30]
[326778374,1715357254450,-577.933165,0.00049957,30]
[326778375,1715357254469,-666.47544,0.00049957,30]
[326778376,1715357254490,-449.500971,0.00049957,30]
[326778377,1715357254511,-642.273131,0.00049957,30]
[326778378,1715357254532,-293.595035,0.00049957,30]
[326778379,1715357254553,-2852.73,0.0004999,3]
[326778380,1715357254576,-5000.0,0.0005,45]
[326778381,1715357254595,-357.20786533,0.0005,10]
[326778382,1715357254616,-2564.35014799,0.0005,60]
[326778383,1715357254640,-151.0,0.0005,120]
[326778384,1715357254662,-168.57513,0.00050489,2]
[326778385,1715357254683,-1120.660797,0.00050574,30]
[326778386,1715357254703,-642.27313,0.00050574,30]
[326778387,1715357254724,-542.181972,0.00050574,30]
[326778388,1715357254745,-1155.866332,0.00050574,30]
[326778389,1715357254764,-372.880405,0.00050574,30]
[326778390,1715357254783,-577.933165,0.00050574,30]
[326778391,1715357254802,-666.47544,0.00050574,30]
[326778392,1715357254826,-449.500971,0.00050574,30]
[326778393,1715357254846,-642.273131,0.00050574,30]
[326778394,1715357254866,-293.595035,0.00050574,30]
[326778395,1715357254886,-1120.660797,0.00051191,30]
[326778396,1715357254906,-642.27313,0.00051191,30]
[326778397,1715357254926,-542.181972,0.00051191,30]
[326778398,1715357254945,-1155.866332,0.00051191,30]
[326778399,1715357254965,-372.880405,0.00051191,30]
[326778400,1715357254988,-577.933165,0.00051191,30]
[326778401,1715357255007,-666.47544,0.00051191,30]
[326778402,1715357255027,-449.500971,0.00051191,30]
[326778403,1715357255046,-642.273131,0.00051191,30]
[326778404,1715357255071,-293.595035,0.00051191,30]
[326778405,1715357255090,-151.0,0.00051397,120]
[326778406,1715357255109,-1120.660797,0.00051808,30]
[326778407,1715357255129,-642.27313,0.00051808,30]
[326778408,1715357255147,-542.181972,0.00051808,30]
[326778409,1715357255166,-1155.866332,0.00051808,30]
[326778410,1715357255185,-372.880405,0.00051808,30]
[326778411,1715357255204,-577.933165,0.00051808,30]
[326778412,1715357255224,-666.47544,0.00051808,30]
[326778413,1715357255242,-449.500971,0.00051808,30]
[326778414,1715357255261,-642.273131,0.00051808,30]
[326778415,1715357255280,-293.595035,0.00051808,30]
[326778416,1715357255300,-557.0,0.00052054,30]
[326778417,1715357255324,-3018.99999995,0.0005226,5]
[326778418,1715357255343,-2421.13790494,0.0005306,120]
[326778419,1715357255363,-168.766912,0.00053425,120]
[326778420,1715357255381,-151.0,0.00054603,120]
[326778421,1715357255401,-365.52872673,0.00054691,4]
[326778422,1715357255421,-1636.84696819,0.00054691,4]
[326778425,1715357330148,154.70605849,9.999e-05,2]
[326778487,1715357432543,-894.51331095,0.00018,2]
[326778489,1715357432553,-442.63686151,0.0002081,2]
[326778490,1715357432562,-192.714612,0.00021312,2]
[326778492,1715357432574,-250.0,0.0002231,2]
[326778494,1715357432584,-155.98944809,0.00031097,4]
[326778507,1715357432708,-1120.81587223,0.00035259,4]
[326778509,1715357432718,-4462.15563976,0.000377,90]
[326778511,1715357432728,-150.0,0.000378,2]
[326778513,1715357432737,-409.78145446,0.00038771,4]
[326778515,1715357432746,-2153.32954009,0.00038771,4]
[326778517,1715357432755,-154.73694719,0.00038772,4]
[326778518,1715357432764,-256.06910556,0.00038773,2]
[326778519,1715357432773,-276.58127795,0.00038773,2]
[326778520,1715357432782,-13511.60110068,0.00038773,5]
[326778552,1715357438434,-3017.5,0.00038773,5]
[326778553,1715357438453,-39025.89889932,0.00038773,5]
[326778554,1715357438463,-3456.61796334,0.00038865,30]
[326778557,1715357439016,-21690.09274748,0.00038865,30]
[326778558,1715357439025,-1174.39118562,0.00038865,2]
[326778559,1715357439035,-300.0,0.00038865,2]
[326778560,1715357439045,-782.64876785,0.00038865,2]
[326778561,1715357439055,-507.23061855,0.00038865,2]
[326778562,1715357439064,-287.04993241,0.00038865,2]
[326778563,1715357439078,-4093.95949096,0.00038865,2]
[326778564,1715357439088,-316.03192088,0.00038865,2]
[326778565,1715357439098,-373.6078862,0.00038865,2]
[326778566,1715357439108,-9957.88273507,0.00038865,2]
[326778567,1715357439119,-2712.94991361,0.00038865,2]
[326778568,1715357439130,-152.25589041,0.00038865,2]
[326778569,1715357439141,-431.44946284,0.00038865,2]
[326778570,1715357439151,-3016.706151,0.00038865,2]
[326778571,1715357439161,-1005.01807778,0.00038865,2]
[326778572,1715357439172,-714.7195409,0.00038865,30]
[326778573,1715357439182,-522.80237075,0.00038865,7]
[326778574,1715357439193,-5004.786378,0.00038865,2]
[326778575,1715357439202,-557.0,0.00038865,30]
[326778576,1715357439212,-557.0,0.00038865,30]
[326778577,1715357439222,-557.0,0.00038865,30]
[326778578,1715357439231,-557.0,0.00038865,30]
[326778579,1715357439241,-557.0,0.00038865,30]
[326778580,1715357439250,-557.0,0.00038865,30]
[326778581,1715357439260,-557.0,0.00038865,30]
[326778582,1715357439270,-557.0,0.00038865,30]
[326778583,1715357439279,-557.0,0.00038865,30]
[326778584,1715357439289,-557.0,0.00038865,30]
[326778585,1715357439299,-557.0,0.00038865,30]
[326778586,1715357439309,-557.0,0.00038865,30]
[326778587,1715357439319,-557.0,0.00038865,30]
[326778588,1715357439334,-557.0,0.00038865,30]
[326778589,1715357439344,-557.0,0.00038865,30]
[326778590,1715357439353,-557.0,0.00038865,30]
[326778591,1715357439363,-557.0,0.00038865,30]
[326778592,1715357439373,-557.0,0.00038865,30]
[326778593,1715357439383,-557.0,0.00038865,30]
[326778594,1715357439393,-478.28507218,0.00038865,30]
[326778595,1715357439403,-557.0,0.00038865,30]
[326778596,1715357439412,-158.72162466,0.00038865,30]
[326778597,1715357439422,-499.14919933,0.00038871,4]
[326778598,1715357439432,-171.8749569,0.00038871,4]
[326778599,1715357439441,-289.33641641,0.00038871,4]
[326778600,1715357439451,-156.00741157,0.00038871,4]
[326778601,1715357439460,-154.73694719,0.00038871,4]
[326778602,1715357439470,-233.19648586,0.00038872,4]
[326778603,1715357439480,-500.0,0.00038872,15]
[326778604,1715357439491,-500.0,0.00038872,15]
[326778605,1715357439502,-500.0,0.00038872,15]
[326778606,1715357439514,-500.0,0.00038872,15]
[326778607,1715357439524,-205.0,0.00038872,15]
[326778608,1715357439535,-4280.05780043,0.0004,4]
[326778609,1715357439545,-223.06351221,0.00041096,4]
[326778610,1715357439555,-544.37018429,0.000425,30]
[326778611,1715357439566,-276.58127794,0.00044934,28]
[326778612,1715357439581,-309.36578238,0.000459,4]
[326778613,1715357439591,-154.70605849,0.0004834,10]
[326778614,1715357439601,-2661.17762652,0.00049,120]
[326778615,1715357439611,-276.58127794,0.00051095,28]
[326778616,1715357439621,-2377.27,0.00052579,3]
[326778617,1715357439630,-1981.06,0.00052579,3]
[326778618,1715357439640,-411.43386353,0.00052588,120]
[326778619,1715357439649,-7434.93202234,0.00052589,5]
[326778620,1715357439659,-5000.0,0.00053325,5]
[326778621,1715357439669,-5000.0,0.00054072,5]
[326778622,1715357439679,-4172.03804368,0.00054691,4]
[326778623,1715357439689,-809.52359201,0.00054691,4]
[326778624,1715357439699,-1712.9168005,0.00054691,4]
[326778625,1715357439708,-205.09992679,0.00054691,4]
[326778626,1715357439717,-155.59196469,0.00054691,4]
[326778627,1715357439726,-248.09006631,0.00054691,4]
[326778628,1715357439837,-5300.36224376,0.00054691,4]
[326778629,1715357439847,-295.94414684,0.00054691,15]
[326778630,1715357439857,-160.0,0.000547,50]
[326778631,1715357439868,-1000.0,0.00054784,14]
[326778632,1715357439879,-2629.30064722,0.0005479,4]
[326778633,1715357439889,-307.7970432,0.00054791,4]
[326778634,1715357439899,-1869.35757111,0.00054791,120]
[326778635,1715357439909,-938.61016356,0.00054791,4]
[326778636,1715357439918,-584.6141292,0.00054791,4]
[326778637,1715357439928,-326.2460122,0.00054792,4]
[326778638,1715357439938,-155.42496717,0.00054792,4]
[326778639,1715357439947,-1000.0,0.00054793,7]
[326778640,1715357439956,-1000.0,0.00054793,7]
[326778641,1715357439966,-1000.0,0.00054793,7]
[326778642,1715357439975,-714.29,0.00054793,7]
[326778644,1715357439985,-714.29,0.00054793,7]
[326778646,1715357439994,-714.29,0.00054793,7]
[326778648,1715357440004,-714.29,0.00054793,7]
[326778650,1715357440014,-714.29,0.00054793,7]
[326778652,1715357440023,-714.29,0.00054793,7]
[326778653,1715357440032,-714.29,0.00054793,7]
[326778654,1715357440041,-10531.68021289,0.00054794,61]
[326778655,1715357440051,-500.0,0.00054794,120]
[326778656,1715357440060,-557.0,0.00054794,30]
[326778657,1715357440070,-500.0,0.00054794,120]
[326778658,1715357440082,-1244.45,0.00054794,2]
[326778659,1715357440092,-500.0,0.00054794,120]
[326778660,1715357440101,-500.0,0.00054794,120]
[326778661,1715357440111,-500.0,0.00054794,2]
[326778662,1715357440120,-500.0,0.00054794,120]
[326778663,1715357440129,-1084.64,0.00054794,2]
[326778664,1715357440139,-500.0,0.00054794,120]
[326778665,1715357440148,-500.0,0.00054794,120]
[326778666,1715357440158,-500.0,0.00054794,120]
[326778667,1715357440167,-500.0,0.00054794,120]
[326778668,1715357440178,-500.0,0.00054794,120]
[326778670,1715357440187,-500.0,0.00054794,120]
[326778671,1715357440197,-610.65,0.00054794,120]
[326778672,1715357440206,-500.0,0.00054794,120]
[326778673,1715357440216,-152.22853703,0.00054794,120]
[326778674,1715357440225,-500.0,0.00054794,120]
[326778675,1715357440235,-500.0,0.00054794,120]
[326778676,1715357440244,-514.16044114,0.00054794,120]
[326778677,1715357440254,-506.40375481,0.00054794,30]
[326778679,1715357440264,-500.0,0.00054794,120]
[326778680,1715357440273,-500.0,0.00054794,120]
[326778681,1715357440282,-500.0,0.00054794,120]
[326778682,1715357440293,-500.0,0.00054794,120]
[326778683,1715357440303,-500.0,0.00054794,120]
[326778684,1715357440313,-500.0,0.00054794,120]
[326778685,1715357440322,-500.0,0.00054794,120]
[326778686,1715357440340,-500.0,0.00054794,120]
[326778687,1715357440350,-500.0,0.00054794,120]
[326778688,1715357440360,-500.0,0.00054794,120]
[326778689,1715357440370,-742.1,0.00054794,120]
[326778690,1715357440379,-501.93658835,0.00054794,120]
[326778691,1715357440388,-349.34175952,0.00054794,120]
[326778692,1715357440398,-500.0,0.00054794,120]
[326778693,1715357440407,-500.0,0.00054794,120]
[326778694,1715357440417,-500.0,0.00054794,120]
[326778695,1715357440427,-500.0,0.00054794,7]
[326778697,1715357440436,-587.90374634,0.00054794,120]
[326778698,1715357440445,-500.0,0.00054794,120]
[326778699,1715357440454,-500.0,0.00054794,120]
[326778700,1715357440464,-500.49267483,0.00054794,120]
[326778701,1715357440473,-500.0,0.00054794,120]
[326778702,1715357440484,-500.0,0.00054794,120]
[326778703,1715357440499,-504.75,0.00054794,120]
[326778705,1715357440509,-500.0,0.00054794,120]
[326778706,1715357440518,-670.27,0.00054794,120]
[326778707,1715357440527,-500.0,0.00054794,120]
[326778708,1715357440537,-500.0,0.00054794,120]
[326778709,1715357440546,-500.0,0.00054794,120]
[326778710,1715357440555,-500.0,0.00054794,120]
[326778711,1715357440565,-500.0,0.00054794,120]
[326778712,1715357440575,-500.0,0.00054794,120]
[326778713,1715357440588,-500.0,0.00054794,120]
[326778714,1715357440597,-317.52214154,0.00054794,120]
[326778715,1715357440607,-500.0,0.00054794,120]
[326778716,1715357440616,-500.0,0.00054794,120]
[326778717,1715357440626,-500.0,0.00054794,120]
[326778718,1715357440635,-396.21187455,0.00054794,120]
[326778719,1715357440645,-500.0,0.00054794,120]
[326778720,1715357440654,-500.0,0.00054794,120]
[326778721,1715357440664,-500.0,0.00054794,120]
[326778722,1715357440673,-500.0,0.00054794,120]
[326778723,1715357440682,-515.03569942,0.00054794,120]
[326778724,1715357440691,-500.0,0.00054794,120]
[326778725,1715357440699,-500.0,0.00054794,120]
[326778726,1715357440708,-500.0,0.00054794,120]
[326778727,1715357440718,-500.0,0.00054794,120]
[326778728,1715357440727,-500.0,0.00054794,120]
[326778729,1715357440736,-500.0,0.00054794,120]
[326778730,1715357440746,-500.0,0.00054794,120]